bitfinex-derivatives/quotes_BTCF0:USTF0_20250318
["timestamp","ask_amount","ask_price","bid_price","bid_amount"]
[1742264683344,0.009,83295.0,83294.0,0.53368803]
[1742264683545,0.1710648,83295.0,83294.0,0.53368803]
[1742264683946,0.051,83295.0,83294.0,0.53368803]
[1742264684744,0.051,83295.0,83294.0,0.77368803]
[1742264685042,0.051,83295.0,83294.0,0.82368803]
[1742264685242,0.051,83295.0,83294.0,0.54368803]
[1742264686058,0.009,83295.0,83294.0,0.54368803]
[1742264687147,0.00018006,83303.0,83297.0,0.0600309]
[1742264687348,0.04288006,83303.0,83302.0,0.4808547]
[1742264687532,0.04288006,83303.0,83302.0,0.8425547]
[1742264688848,0.04788006,83303.0,83302.0,0.8425547]
[1742264689153,0.05288006,83303.0,83302.0,0.8425547]
[1742264689445,0.05288006,83303.0,83302.0,1.0825547]
[1742264689637,0.0417,83306.0,83305.0,0.1200504]
[1742264689839,0.0417,83306.0,83305.0,0.4694504]
[1742264690141,0.04545239,83306.0,83305.0,0.5531504]
[1742264690849,0.00375239,83306.0,83305.0,0.5531504]
[1742264691036,0.00375239,83306.0,83305.0,0.5631504]
[1742264691741,0.042,83313.0,83312.0,0.1200403]
[1742264691942,0.18021791,83314.0,83313.0,0.1200388]
[1742264692143,0.0408,83324.0,83318.0,0.1200316]
[1742264692450,0.22685188,83319.0,83318.0,0.6900316]
[1742264692643,0.21596864,83319.0,83318.0,0.6900316]
[1742264692846,0.0417,83329.0,83323.0,0.0600122]
[1742264693042,0.0424,83328.0,83327.0,0.1200187]
[1742264693348,0.0424,83328.0,83327.0,0.7208187]
[1742264693738,0.0832,83328.0,83327.0,0.7208187]
[1742264694151,0.003,83329.0,83328.0,0.1200172]
[1742264694353,0.003,83329.0,83328.0,0.6200172]
[1742264694545,0.003,83329.0,83328.0,0.8500172]
[1742264694749,0.003,83329.0,83328.0,0.88287799]
[1742264694950,0.25778522,83335.0,83328.0,0.88287799]
[1742264694951,0.21538522,83335.0,83334.0,0.1200086]
[1742264695251,0.0599965,83345.0,83334.0,0.1200086]
[1742264695252,0.2037951,83344.0,83340.0,0.0599995]
[1742264695453,0.0404,83342.0,83341.0,0.2993577]
[1742264695649,0.0404,83342.0,83341.0,0.9101577]
[1742264695837,0.2006971,83342.0,83341.0,0.9101577]
[1742264697248,0.2016971,83342.0,83341.0,0.9101577]
[1742264697754,0.2036971,83342.0,83341.0,0.9101577]
[1742264700754,0.2036971,83342.0,83341.0,0.7907977]
[1742264700962,0.2036971,83342.0,83341.0,0.3608]
[1742264701158,0.2036971,83342.0,83338.0,0.0600011]
[1742264701159,0.1200071,83335.0,83334.0,0.3608]
[1742264701346,0.1200071,83335.0,83334.0,0.4808086]
[1742264701653,0.2036071,83335.0,83334.0,0.4808086]
[1742264702756,0.2096071,83335.0,83334.0,0.4808086]
[1742264703148,0.2096071,83335.0,83334.0,0.5220086]
[1742264703654,0.2133584,83335.0,83334.0,0.5220086]
[1742264704151,0.22438585,83335.0,83334.0,0.5220086]
[1742264704359,0.22438585,83335.0,83334.0,0.8020086]
[1742264704849,0.10437875,83335.0,83334.0,0.8020086]
[1742264705251,0.10437875,83335.0,83334.0,1.0620086]
[1742264705451,0.02077875,83335.0,83334.0,1.0620086]
[1742264708247,0.0599921,83351.0,83349.0,0.119987]
[1742264708459,0.04268006,83350.0,83349.0,0.399987]
[1742264708957,0.04268006,83350.0,83349.0,0.438887]
[1742264709148,0.16266566,83350.0,83349.0,0.438887]
[1742264709548,0.24596566,83350.0,83349.0,0.480587]
[1742264709760,0.24896566,83350.0,83349.0,0.480587]
[1742264709960,0.24896566,83350.0,83349.0,0.50338045]
[1742264712159,0.24296566,83350.0,83349.0,0.50338045]
[1742264713273,0.0599847,83362.0,83349.0,0.50338045]
[1742264713274,0.0599809,83367.0,83360.0,0.1799552]
[1742264713454,0.1199683,83362.0,83361.0,0.0799]
[1742264713656,0.1199683,83362.0,83361.0,0.3299]
[1742264714156,0.1199683,83362.0,83361.0,0.4498683]
[1742264714355,0.0599721,83379.0,83361.0,0.4498683]
[1742264714356,0.1799426,83369.0,83368.0,0.1199525]
[1742264714561,0.2198426,83369.0,83368.0,0.48891401]
[1742264716465,0.2625426,83369.0,83368.0,0.48891401]
[1742264718458,0.3014426,83369.0,83368.0,0.48891401]
[1742264720462,0.30519263,83369.0,83368.0,0.48891401]
[1742264721269,0.30519263,83369.0,83368.0,0.60815401]
[1742264721668,0.26629263,83369.0,83368.0,0.60815401]
[1742264722568,0.22359263,83369.0,83368.0,0.60815401]
[1742264723072,0.26279263,83369.0,83368.0,0.60815401]
[1742264726457,0.26279263,83369.0,83368.0,0.48891401]
[1742264726666,0.1199654,83364.0,83363.0,0.48004]
[1742264726969,0.1199654,83364.0,83363.0,0.3608]
[1742264727175,0.13459187,83364.0,83363.0,0.3608]
[1742264727965,0.21569187,83364.0,83363.0,0.3608]
[1742264728159,0.20481543,83364.0,83363.0,0.3608]
[1742264728967,0.20481543,83364.0,83363.0,0.36998352]
[1742264729271,0.1199726,83359.0,83358.0,0.0811]
[1742264729466,0.0599847,83362.0,83352.0,0.91164]
[1742264729467,0.1199798,83354.0,83352.0,0.0006]
[1742264729673,0.4807798,83354.0,83349.0,0.24692289]
[1742264729974,0.56482983,83354.0,83349.0,0.24692289]
[1742264730173,0.57583372,83354.0,83349.0,0.28772289]
[1742264731172,0.57583372,83354.0,83350.0,0.21493408]
[1742264731874,0.57583372,83354.0,83345.0,0.28562579]
[1742264731875,0.1199913,83346.0,83345.0,0.28562579]
[1742264732078,0.13099519,83346.0,83345.0,0.28562579]
[1742264732273,0.25329519,83346.0,83345.0,0.28562579]
[1742264732475,0.2630472,83346.0,83345.0,0.25861686]
[1742264732870,0.26319329,83346.0,83345.0,0.25861686]
[1742264733173,0.25719131,83346.0,83345.0,0.37860966]
[1742264733471,0.21599131,83346.0,83345.0,0.41800966]
[1742264733675,0.13489131,83346.0,83345.0,1.22054966]
[1742264733877,0.13489131,83346.0,83345.0,1.26064966]
[1742264734662,0.13489199,83346.0,83345.0,1.26064966]
[1742264735575,0.13489199,83346.0,83345.0,1.0020328]
[1742264736276,0.01490069,83346.0,83345.0,1.2620328]
[1742264736467,0.01490069,83346.0,83345.0,1.0020328]
[1742264738377,0.13489199,83346.0,83345.0,1.0020328]
[1742264740271,0.13495318,83346.0,83345.0,1.0020328]
[1742264744376,0.13495318,83346.0,83345.0,0.8426928]
[1742264744681,0.13495318,83346.0,83342.0,0.08069813]
[1742264744682,0.1199956,83343.0,83342.0,0.02069993]
[1742264744987,0.1199971,83342.0,83341.0,0.1199978]
[1742264745185,0.21080827,83342.0,83341.0,0.1199978]
[1742264745385,0.27468434,83342.0,83341.0,0.1199978]
[1742264745683,0.27468434,83342.0,83341.0,0.14095809]
[1742264745875,0.27468434,83342.0,83341.0,0.18245809]
[1742264746076,0.27268434,83342.0,83341.0,0.18245809]
[1742264746288,0.23088434,83342.0,83341.0,0.18245809]
[1742264746491,0.15328434,83342.0,83341.0,0.41245809]
[1742264746782,0.15328434,83342.0,83341.0,0.41345809]
[1742264746975,0.15328434,83342.0,83341.0,0.41445809]
[1742264747580,0.03328724,83342.0,83341.0,0.41445809]
[1742264747782,0.15328434,83342.0,83341.0,0.41445809]
[1742264748085,0.15328434,83342.0,83341.0,0.65445809]
[1742264748277,0.15328434,83342.0,83341.0,0.41445809]
[1742264748680,0.03328724,83342.0,83341.0,0.68445809]
[1742264748878,0.0599913,83353.0,83341.0,0.68445809]
[1742264748879,0.0599913,83353.0,83341.0,0.41445809]
[1742264749076,0.07656273,83360.0,83359.0,0.1199726]
[1742264749383,0.0599707,83381.0,83368.0,0.1199596]
[1742264749384,0.0599797,83369.0,83368.0,0.1199596]
[1742264749580,0.0599797,83369.0,83368.0,0.5490596]
[1742264750180,0.1799414,83369.0,83368.0,0.5490596]
[1742264750379,0.18594116,83369.0,83368.0,0.5490596]
[1742264750984,0.18794116,83369.0,83368.0,0.5490596]
[1742264751690,0.18794116,83369.0,83368.0,0.56982479]
[1742264752584,0.1829414,83369.0,83368.0,0.56982479]
[1742264753587,0.0629797,83369.0,83368.0,0.56982479]
[1742264754993,0.0629797,83369.0,83368.0,0.44986519]
[1742264755195,0.1435797,83369.0,83368.0,0.56982479]
[1742264755487,0.1435797,83369.0,83368.0,0.29982479]
[1742264756077,0.0629797,83369.0,83368.0,0.53982479]
[1742264756288,0.003,83369.0,83368.0,0.53982479]
[1742264756475,0.1229582,83369.0,83368.0,0.53982479]
[1742264757079,0.003,83369.0,83368.0,0.53982479]
[1742264757285,0.12006602,83377.0,83376.0,0.1199481]
[1742264757485,0.12006602,83377.0,83376.0,0.5214481]
[1742264758483,0.12106602,83377.0,83376.0,0.5214481]
[1742264758683,0.12206602,83377.0,83376.0,0.5214481]
[1742264759190,0.16436602,83377.0,83376.0,0.5214481]
[1742264759381,0.20326602,83377.0,83376.0,0.5214481]
[1742264759582,0.20426602,83377.0,83376.0,0.5214481]
[1742264760893,0.20326602,83377.0,83376.0,0.5214481]
[1742264761584,0.20701552,83377.0,83376.0,0.5214481]
[1742264763295,0.20701552,83377.0,83376.0,0.5615481]
[1742264766991,0.20701552,83377.0,83376.0,0.3224]
[1742264767187,0.20701552,83377.0,83376.0,0.0824]
[1742264767694,0.20701552,83377.0,83376.0,0.2023481]
[1742264768197,0.20701552,83377.0,83376.0,0.0824]
[1742264768693,0.20701552,83377.0,83376.0,0.0423]
[1742264768893,0.1199568,83370.0,83364.0,0.1199647]
[1742264769094,0.1799438,83367.0,83366.0,0.1199619]
[1742264769297,0.1799438,83367.0,83366.0,0.2017619]
[1742264769484,0.18969312,83367.0,83366.0,0.2017619]
[1742264769683,0.18969312,83367.0,83366.0,0.22199177]
[1742264771091,0.1836933,83367.0,83366.0,0.22199177]
[1742264771985,0.0637308,83367.0,83366.0,0.22199177]
[1742264772595,0.1033308,83367.0,83366.0,0.22199177]
[1742264775502,0.0637308,83367.0,83366.0,0.46199177]
[1742264775690,0.0637308,83367.0,83366.0,0.50159177]
[1742264778006,0.0637308,83367.0,83366.0,0.86239177]
[1742264779807,0.0637308,83367.0,83366.0,0.82279177]
[1742264780008,0.1048308,83367.0,83366.0,0.82279177]
[1742264782100,0.1469308,83367.0,83366.0,0.82279177]
[1742264784110,0.1891308,83367.0,83366.0,0.82279177]
[1742264784706,0.1469308,83367.0,83366.0,0.82279177]
[1742264786015,0.1469308,83367.0,83366.0,0.46199177]
[1742264786199,0.1469308,83367.0,83366.0,0.82279177]
[1742264786603,0.1058308,83367.0,83366.0,0.82279177]
[1742264787108,0.1922308,83367.0,83366.0,0.82279177]
[1742264787411,0.1922308,83367.0,83366.0,0.58279177]
[1742264787810,0.1922308,83367.0,83366.0,0.46282987]
[1742264787999,0.1922308,83367.0,83366.0,0.42232987]
[1742264788399,0.1922308,83367.0,83360.0,0.12015035]
[1742264788400,0.1199697,83361.0,83360.0,0.00017995]
[1742264788710,0.1199697,83361.0,83360.0,0.12015115]
[1742264788905,0.2101192,83361.0,83360.0,0.12015115]
[1742264789105,0.2101192,83361.0,83360.0,0.20265115]
[1742264789307,0.1665192,83361.0,83360.0,0.22158224]
[1742264790211,0.1237192,83361.0,83360.0,0.22158224]
[1742264791108,0.2092192,83361.0,83360.0,0.22158224]
[1742264791611,0.1673192,83361.0,83360.0,0.22158224]
[1742264793114,0.1237192,83361.0,83360.0,0.22158224]
[1742264798117,0.17972846,83367.0,83366.0,0.1199625]
[1742264798319,0.11104842,83373.0,83372.0,0.1199539]
[1742264798625,0.25123757,83385.0,83376.0,0.1199481]
[1742264798919,0.25123757,83385.0,83384.0,0.1199366]
[1742264799116,0.25123757,83385.0,83384.0,0.7407366]
[1742264799425,0.28736657,83390.0,83389.0,0.1199294]
[1742264799721,0.28736657,83390.0,83389.0,0.3899294]
[1742264800124,0.28736657,83390.0,83389.0,0.5137294]
[1742264800719,0.0382064,83390.0,83389.0,0.5226918]
[1742264800909,0.32329108,83396.0,83395.0,0.1199208]
[1742264801109,0.32329108,83396.0,83395.0,0.5998008]
[1742264801317,0.32329108,83396.0,83395.0,0.6839008]
[1742264801713,0.29815066,83396.0,83395.0,0.9439008]
[1742264802021,0.21755927,83401.0,83400.0,0.1199136]
[1742264802210,0.21755927,83401.0,83400.0,0.4099136]
[1742264802410,0.21755927,83401.0,83400.0,0.4924136]
[1742264803625,0.1199135,83401.0,83400.0,0.06171903]
[1742264803827,0.2419135,83401.0,83400.0,0.06171903]
[1742264805325,0.2419135,83401.0,83400.0,0.10321903]
[1742264805921,0.2419135,83401.0,83400.0,0.06171903]
[1742264807425,0.2419135,83401.0,83400.0,0.18163263]
[1742264807626,0.2419135,83401.0,83400.0,0.06171903]
[1742264808027,0.2419135,83401.0,83400.0,0.10111903]
[1742264808521,0.2419135,83401.0,83400.0,0.22103263]
[1742264810326,0.24566227,83401.0,83400.0,0.22103263]
[1742264811332,0.24566227,83401.0,83400.0,0.10111903]
[1742264814419,0.24566227,83401.0,83400.0,0.01881903]
[1742264814625,0.119928,83390.0,83389.0,0.0089624]
[1742264814934,0.1799021,83386.0,83385.0,0.1199339]
[1742264815535,0.18365087,83386.0,83385.0,0.1199339]
[1742264815735,0.18365087,83386.0,83385.0,0.2047339]
[1742264817637,0.18365087,83386.0,83385.0,0.2233886]
[1742264818524,0.18365087,83386.0,83385.0,0.1034547]
[1742264819638,0.26685087,83386.0,83385.0,0.1034547]
[1742264821833,0.26685087,83386.0,83385.0,0.2233899]
[1742264822534,0.26685087,83386.0,83385.0,0.1034547]
[1742264826540,0.26685087,83386.0,83381.0,0.00017995]
[1742264826541,0.1199395,83382.0,83381.0,0.00017995]
[1742264826746,0.1199611,83367.0,83366.0,0.0412]
[1742264826942,0.1199611,83367.0,83366.0,0.4111625]
[1742264827640,0.12370987,83367.0,83366.0,0.4111625]
[1742264827836,0.12370987,83367.0,83366.0,0.43044694]
[1742264828445,0.12370987,83367.0,83366.0,0.43944015]
[1742264828644,0.12370987,83367.0,83366.0,0.44044015]
[1742264828845,0.12370987,83367.0,83366.0,0.48024015]
[1742264829043,0.12370987,83367.0,83366.0,0.48124015]
[1742264838748,0.06015475,83375.0,83374.0,0.119951]
[1742264838954,0.06015475,83375.0,83374.0,0.605651]
[1742264843558,0.06015475,83375.0,83374.0,0.855651]
[1742264844754,0.0599708,83381.0,83380.0,0.1199424]
[1742264845142,0.1799173,83381.0,83380.0,0.2058424]
[1742264845348,0.1798934,83390.0,83389.0,0.2398446]
[1742264845549,0.1798934,83390.0,83389.0,0.3257446]
[1742264846355,0.0599615,83394.0,83393.0,0.0599617]
[1742264847057,0.0599615,83394.0,83393.0,0.1458617]
[1742264847260,0.0599615,83394.0,83393.0,0.4158617]
[1742264847460,0.1798887,83394.0,83393.0,0.4158617]
[1742264850158,0.0599615,83394.0,83393.0,0.4158617]
[1742264850466,0.179881,83396.0,83395.0,0.1199208]
[1742264850663,0.0599579,83399.0,83395.0,0.28]
[1742264850861,0.0868,83404.0,83396.0,0.0433]
[1742264851166,0.1798517,83413.0,83412.0,0.1198949]
[1742264851358,0.31179999,83413.0,83412.0,0.1198949]
[1742264851767,0.31179999,83413.0,83412.0,0.14394523]
[1742264853557,0.3080517,83413.0,83412.0,0.14394523]
[1742264853959,0.3080517,83413.0,83412.0,0.15287623]
[1742264854362,0.0868,83413.0,83412.0,0.15287623]
[1742264855358,0.1615949,83413.0,83412.0,0.43287623]
[1742264856268,0.1198949,83413.0,83412.0,0.43287623]
[1742264858255,0.1653949,83413.0,83412.0,0.43287623]
[1742264858461,0.2088949,83413.0,83412.0,0.43287623]
[1742264860158,0.102044,83418.0,83412.0,0.31298133]
[1742264860366,0.1198859,83420.0,83419.0,0.1198863]
[1742264860569,0.1198949,83413.0,83412.0,0.03298133]
[1742264860872,0.2397931,83413.0,83412.0,0.1198964]
[1742264861074,0.2824931,83413.0,83412.0,0.14356351]
[1742264861576,0.3235931,83413.0,83412.0,0.15244156]
[1742264863385,0.3235931,83413.0,83412.0,0.19424156]
[1742264864966,0.0599486,83413.0,83412.0,0.43424156]
[1742264865472,0.0599486,83413.0,83412.0,0.47574156]
[1742264866574,0.1013486,83413.0,83412.0,0.47574156]
[1742264867075,0.0599486,83413.0,83412.0,0.47574156]
[1742264867375,0.059945,83418.0,83417.0,0.1798301]
[1742264867564,0.059945,83418.0,83417.0,0.4198301]
[1742264868176,0.1798327,83418.0,83417.0,0.4198301]
[1742264868362,0.1798327,83418.0,83417.0,0.2999438]
[1742264869076,0.1798327,83418.0,83417.0,0.3436438]
[1742264869376,0.1798327,83418.0,83417.0,0.3857438]
[1742264869770,0.17983,83420.0,83419.0,0.1198863]
[1742264869972,0.17983,83420.0,83419.0,0.3898863]
[1742264870279,0.17983,83420.0,83419.0,0.4756863]
[1742264871179,0.3608,83441.0,83419.0,0.61468]
[1742264871477,0.17425465,83437.0,83436.0,0.119859]
[1742264871667,0.1198719,83429.0,83427.0,0.4207373]
[1742264871864,0.2052734,83428.0,83427.0,0.3608]
[1742264872064,0.2482734,83428.0,83427.0,0.3608]
[1742264873375,0.2482734,83428.0,83427.0,0.4806748]
[1742264875878,0.2482734,83428.0,83427.0,0.3608]
[1742264876067,0.1198806,83423.0,83422.0,0.00017983]
[1742264876473,0.2068806,83423.0,83422.0,0.00017983]
[1742264877976,0.1198806,83423.0,83422.0,0.00017983]
[1742264878281,0.1198806,83423.0,83422.0,0.39006183]
[1742264883379,0.1630806,83423.0,83422.0,0.43416183]
[1742264883579,0.2052806,83423.0,83422.0,0.43416183]
[1742264884377,0.2052806,83423.0,83422.0,0.31427983]
[1742264885672,0.2052806,83423.0,83422.0,0.04427983]
[1742264887581,0.2052806,83423.0,83422.0,0.16416183]
[1742264888180,0.2052806,83423.0,83422.0,0.04427983]
[1742264890277,0.2052806,83423.0,83422.0,0.08807983]
[1742264890674,0.2052806,83423.0,83422.0,0.20796183]
[1742264891082,0.1198806,83423.0,83422.0,0.20796183]
[1742264891287,0.1198806,83423.0,83422.0,0.25406183]
[1742264891590,0.1198806,83423.0,83422.0,0.50406183]
[1742264891985,0.0599382,83426.0,83425.0,0.1798128]
[1742264892292,0.1798144,83426.0,83425.0,0.1798128]
[1742264892482,0.1798144,83426.0,83425.0,0.2657128]
[1742264893583,0.1798144,83426.0,83425.0,0.5157128]
[1742264894881,0.1798144,83426.0,83425.0,0.395838]
[1742264895085,0.13109534,83447.0,83425.0,0.8167]
[1742264895382,0.1797664,83453.0,83452.0,0.2396673]
[1742264895580,0.0599147,83459.0,83458.0,0.0599144]
[1742264895984,0.1509147,83459.0,83458.0,0.0599144]
[1742264896580,0.1509147,83459.0,83458.0,0.08370569]
[1742264896781,0.1509147,83459.0,83458.0,0.02379129]
[1742264896981,0.1198303,83458.0,83457.0,0.1635317]
[1742264897378,0.0599073,83469.0,83468.0,0.1198145]
[1742264897586,0.1797238,83468.0,83467.0,0.2386559]
[1742264897782,0.1797238,83468.0,83467.0,0.5086559]
[1742264899299,0.1797238,83468.0,83467.0,0.51765973]
[1742264899480,0.0599079,83468.0,83467.0,0.51765973]
[1742264900090,0.0599079,83468.0,83467.0,0.39881973]
[1742264900290,0.1797207,83473.0,83472.0,0.1198031]
[1742264900585,0.1797207,83473.0,83472.0,0.4806031]
[1742264901287,0.1796978,83482.0,83481.0,0.1197944]
[1742264901494,0.1796978,83482.0,83481.0,0.2388344]
[1742264902293,0.0598965,83484.0,83483.0,0.1197944]
[1742264904285,0.0598965,83484.0,83483.0,0.3897944]
[1742264907992,0.1197914,83486.0,83483.0,0.4496909]
[1742264908193,0.0598937,83488.0,83487.0,0.1796794]
[1742264908489,0.0598937,83488.0,83487.0,0.4496794]
[1742264908692,0.1796752,83495.0,83494.0,0.1197786]
[1742264908993,0.0598791,83509.0,83499.0,0.1197714]
[1742264909193,0.0598826,83504.0,83499.0,0.5186514]
[1742264910191,0.21977,83500.0,83499.0,0.5186514]
[1742264911096,0.02400052,83500.0,83499.0,0.6086514]
[1742264911391,0.0598721,83518.0,83499.0,0.48888]
[1742264911581,0.1036705,83521.0,83516.0,0.179617]
[1742264911582,0.1796238,83517.0,83516.0,0.179617]
[1742264911787,0.1796238,83517.0,83516.0,0.298497]
[1742264912299,0.1796183,83519.0,83518.0,0.1197442]
[1742264912694,0.1029655,83528.0,83518.0,0.1197442]
[1742264912695,0.0598655,83528.0,83527.0,0.1197313]
[1742264912994,0.0598655,83528.0,83527.0,0.2388113]
[1742264913697,0.1036655,83528.0,83527.0,0.2388113]
[1742264913886,0.1036655,83528.0,83527.0,0.34928166]
[1742264914500,0.1036655,83528.0,83527.0,0.22955036]
[1742264914690,0.1036655,83528.0,83527.0,0.34928166]
[1742264914899,0.1036655,83528.0,83527.0,0.22955036]
[1742264915289,0.1036655,83528.0,83527.0,0.11047036]
[1742264915485,0.1931655,83528.0,83527.0,0.06397036]
[1742264916100,0.1931655,83528.0,83527.0,0.02107036]
[1742264916299,0.1197399,83521.0,83520.0,0.086]
[1742264916801,0.1197399,83521.0,83520.0,0.06417355]
[1742264917101,0.2079399,83521.0,83520.0,0.06417355]
[1742264919605,0.2079399,83521.0,83520.0,0.10797355]
[1742264921905,0.0598721,83518.0,83509.0,0.1789184]
[1742264922104,0.1796163,83518.0,83517.0,0.0878]
[1742264925101,0.1197557,83510.0,83509.0,0.02139934]
[1742264925598,0.1647557,83510.0,83509.0,0.02139934]
[1742264927400,0.4058,83510.0,83501.0,0.21335779]
[1742264927601,0.4058,83510.0,83473.0,0.7724]
[1742264927602,0.0598854,83500.0,83486.0,0.00920273]
[1742264927797,0.4805844,83490.0,83489.0,0.376414]
[1742264928000,0.5997044,83490.0,83489.0,0.376414]
[1742264928197,0.6447044,83490.0,83489.0,0.376414]
[1742264929100,0.5255844,83490.0,83489.0,0.421914]
[1742264929299,0.1647844,83490.0,83489.0,0.421914]
[1742264929494,0.1647844,83490.0,83489.0,0.422914]
[1742264929705,0.1647844,83490.0,83489.0,0.06796882]
[1742264929902,0.1647844,83490.0,83489.0,0.02246882]
[1742264930102,0.1197858,83489.0,83488.0,0.42705917]
[1742264932208,0.2390658,83489.0,83488.0,0.42705917]
[1742264932410,0.2410658,83489.0,83488.0,0.42705917]
[1742264932602,0.2440658,83489.0,83488.0,0.42705917]
[1742264933512,0.2888658,83489.0,83488.0,0.47235917]
[1742264933809,0.2888658,83489.0,83488.0,0.0453]
[1742264934808,0.1197872,83488.0,83487.0,0.0446]
[1742264935109,0.4805872,83488.0,83487.0,0.0446]
[1742264935309,0.6445472,83488.0,83487.0,0.0446]
[1742264935901,0.6465472,83488.0,83487.0,0.0446]
[1742264936101,0.6485472,83488.0,83487.0,0.0446]
[1742264936702,0.2877472,83488.0,83487.0,0.0446]
[1742264939514,0.3371472,83488.0,83487.0,0.0446]
[1742264939907,0.2877472,83488.0,83487.0,0.0446]
[1742264941510,0.6485472,83488.0,83487.0,0.0446]
[1742264941720,0.119793,83484.0,83483.0,1e-08]
[1742264942017,0.1197958,83482.0,83481.0,0.00017959]
[1742264942418,0.1661958,83482.0,83481.0,0.00017959]
[1742264942720,0.16994094,83482.0,83481.0,0.00017959]
[1742264942919,0.16994094,83482.0,83481.0,0.02116252]
[1742264943116,0.22014094,83482.0,83481.0,0.00017959]
[1742264944121,0.22114094,83482.0,83481.0,0.00017959]
[1742264944710,0.12454094,83482.0,83481.0,0.02115192]
[1742264945212,0.1207958,83482.0,83481.0,0.02115192]
[1742264945933,0.1207958,83482.0,83481.0,0.12095192]
[1742264946119,0.12454088,83482.0,83481.0,0.12095192]
[1742264948119,0.12454088,83482.0,83481.0,0.07185192]
[1742264948313,0.1198159,83468.0,83467.0,0.3608]
[1742264948920,0.2169159,83468.0,83467.0,0.38147767]
[1742264949722,0.2169159,83468.0,83467.0,0.38447767]
[1742264949927,0.2169159,83468.0,83467.0,0.38747767]
[1742264950315,0.2169159,83468.0,83467.0,0.14649507]
[1742264951113,0.2169159,83468.0,83467.0,0.02667767]
[1742264951719,0.2169159,83468.0,83467.0,0.14649507]
[1742264952214,0.2169159,83468.0,83467.0,0.19239507]
[1742264952922,0.2169159,83468.0,83467.0,0.07257767]
[1742264953223,0.2169159,83468.0,83467.0,0.19239507]
[1742264955026,0.2169159,83468.0,83467.0,0.24089507]
[1742264955928,0.1660159,83468.0,83467.0,0.24089507]
[1742264957629,0.119987,83476.0,83475.0,0.1198059]
[1742264957828,0.1798899,83476.0,83475.0,0.1198059]
[1742264958631,0.1798899,83476.0,83475.0,0.2166059]
[1742264958931,0.1798899,83476.0,83475.0,0.2176059]
[1742264959130,0.1798899,83476.0,83475.0,0.2186059]
[1742264959527,0.1798899,83476.0,83475.0,0.0988]
[1742264960731,0.2263899,83476.0,83475.0,0.0988]
[1742264970936,0.2263899,83476.0,83475.0,0.2186059]
[1742264973729,0.2263899,83476.0,83475.0,0.0988]
[1742264974437,0.2263899,83476.0,83475.0,0.2186059]
[1742264977844,0.2263899,83476.0,83475.0,0.0988]
[1742264978546,0.2263899,83476.0,83475.0,0.2186059]
[1742264980641,0.1798899,83476.0,83475.0,0.2186059]
[1742264992851,0.1798899,83476.0,83475.0,0.0988]
[1742264994352,0.18000984,83476.0,83475.0,0.0988]
[1742264994552,0.18000984,83476.0,83475.0,0.2186059]
[1742264996751,0.18000984,83476.0,83475.0,0.0988]
[1742265000665,0.18000984,83476.0,83475.0,0.2186059]
[1742265000870,0.00029964,83476.0,83475.0,0.2186059]
[1742265001162,0.12010404,83476.0,83475.0,0.2186059]
[1742265001357,0.12010404,83476.0,83475.0,0.0988]
[1742265001560,0.21390404,83476.0,83475.0,0.0988]
[1742265001758,0.21390404,83476.0,83475.0,0.002]
[1742265002366,0.1197834,83491.0,83490.0,0.0598914]
[1742265002560,0.0598908,83492.0,83488.0,0.094]
[1742265002761,0.1197858,83489.0,83488.0,0.094]
[1742265003259,0.1651858,83489.0,83488.0,0.094]
[1742265003661,0.1198044,83476.0,83475.0,0.001]
[1742265003861,0.1198044,83476.0,83475.0,0.1308059]
[1742265004268,0.1198044,83476.0,83475.0,0.1298059]
[1742265004858,0.1198044,83476.0,83475.0,0.2238059]
[1742265005057,0.1198044,83476.0,83475.0,0.2138059]
[1742265005469,0.1198044,83476.0,83475.0,0.2148059]
[1742265005858,0.1198044,83476.0,83475.0,0.4948059]
[1742265006055,0.1198044,83476.0,83475.0,0.4748059]
[1742265006255,0.1198044,83476.0,83475.0,0.2148059]
[1742265006462,0.1198044,83476.0,83475.0,0.4658059]
[1742265006771,0.1198044,83476.0,83475.0,0.2158059]
[1742265007371,0.0598986,83482.0,83481.0,0.1796922]
[1742265007573,0.0598986,83482.0,83481.0,0.4196922]
[1742265007872,0.0598986,83482.0,83481.0,0.5147922]
[1742265008668,0.1085986,83482.0,83481.0,0.5147922]
[1742265009564,0.1095986,83482.0,83481.0,0.5147922]
[1742265010573,0.1544986,83482.0,83481.0,0.5147922]
[1742265013178,0.1095986,83482.0,83481.0,0.5147922]
[1742265014366,0.1095986,83482.0,83481.0,0.7847922]
[1742265014367,0.001,83482.0,83481.0,0.7847922]
[1742265014565,0.0461,83490.0,83489.0,0.1197858]
[1742265014767,0.0461,83490.0,83489.0,0.6222858]
[1742265015773,0.0491,83490.0,83489.0,0.6222858]
[1742265015972,0.1688844,83490.0,83489.0,0.6222858]
[1742265016575,0.1227844,83490.0,83489.0,0.6222858]
[1742265016771,0.1688844,83490.0,83489.0,0.6222858]
[1742265017270,0.1708844,83490.0,83489.0,0.6222858]
[1742265018080,0.2194844,83490.0,83489.0,0.6222858]
[1742265021073,0.2194844,83490.0,83489.0,0.5736858]
[1742265021285,0.2194844,83490.0,83489.0,0.0446]
[1742265021489,0.2194844,83490.0,83489.0,0.1643858]
[1742265021984,0.2194844,83490.0,83489.0,0.2093858]
[1742265022386,0.2194844,83490.0,83489.0,0.0896]
[1742265022687,0.2194844,83490.0,83489.0,0.1643858]
[1742265023596,0.2194844,83490.0,83489.0,0.2093858]
[1742265023885,0.2194844,83490.0,83489.0,0.5701858]
[1742265032989,0.1247844,83490.0,83489.0,0.5701858]
[1742265033196,0.1247844,83490.0,83489.0,0.6154858]
[1742265034096,0.1701844,83490.0,83489.0,0.6154858]
[1742265035585,0.2156844,83490.0,83489.0,0.6154858]
[1742265035789,0.2156844,83490.0,83489.0,0.5701858]
[1742265038589,0.2156844,83490.0,83489.0,0.4504]
[1742265038795,0.2156844,83490.0,83489.0,0.5701858]
[1742265038982,0.2156844,83490.0,83489.0,0.4504]
[1742265039395,0.2156844,83490.0,83489.0,0.5701858]
[1742265040100,0.2156844,83490.0,83489.0,0.4504]
[1742265040284,0.2156844,83490.0,83489.0,0.5701858]
[1742265040483,0.2156844,83490.0,83489.0,0.4504]
[1742265042796,0.1197958,83482.0,83481.0,0.2848068]
[1742265042986,0.1197958,83482.0,83481.0,0.3323068]
[1742265043188,0.3742758,83482.0,83481.0,0.2848068]
[1742265043993,0.3752758,83482.0,83481.0,0.2848068]
[1742265044895,0.3752758,83482.0,83481.0,0.30898263]
[1742265046296,0.1207958,83482.0,83481.0,0.30898263]
[1742265047397,0.1207958,83482.0,83481.0,0.42877993]
[1742265048001,0.1207958,83482.0,83481.0,0.14415283]
[1742265048796,0.1207958,83482.0,83481.0,0.27995283]
[1742265049598,0.1207958,83482.0,83481.0,0.52995283]
[1742265052612,0.0598893,83494.0,83493.0,0.1796664]
[1742265052802,0.0598893,83494.0,83493.0,0.5404664]
[1742265053521,0.1796679,83494.0,83493.0,0.5404664]
[1742265053705,0.1826679,83494.0,83493.0,0.5404664]